[Event "Titled Tuesday Blitz November 07 Early 2023"]
[White "Kochiev, Ivan"]
[Black "Vifleemskaia, Svetlana"]
[WhiteFideId "2917890"]
[BlackFideId "4129490"]
[WhiteElo "2510"]
[BlackElo "2284"]
[Result "1-0"]
[Round "6"]
[TimeControl "180+1"]
[Date "2023.11.07"]
[WhiteClock "0:00:23"]
[BlackClock "0:00:00"]
[Board "168"]

1. e4 {[%clk 0:03:00]}  e5 {[%clk 0:02:59]} 2. Nf3 {[%clk 0:02:59]}  Nc6 {[%clk 0:02:59]} 3. d4 {[%clk 0:02:59]}  exd4 {[%clk 0:02:59]} 4. Bc4 {[%clk 0:03:00]}  Nf6 {[%clk 0:02:59]} 5. O-O {[%clk 0:02:54]}  Nxe4 {[%clk 0:02:58]} 6. Nc3 {[%clk 0:02:54]}  Nxc3 {[%clk 0:02:47]} 7. bxc3 {[%clk 0:02:54]}  d5 {[%clk 0:02:47]} 8. Bd3 {[%clk 0:02:48]}  dxc3 {[%clk 0:02:43]} 9. Re1+ {[%clk 0:02:44]}  Be7 {[%clk 0:02:42]} 10. Ng5 {[%clk 0:02:14]}  g6 {[%clk 0:01:51]} 11. Ba3 {[%clk 0:01:32]}  O-O {[%clk 0:01:46]} 12. Rxe7 {[%clk 0:01:31]}  Nxe7 {[%clk 0:01:46]} 13. Qe2 {[%clk 0:01:19]}  Nf5 {[%clk 0:01:46]} 14. Bxf8 {[%clk 0:01:14]}  Kxf8 {[%clk 0:01:38]} 15. h4 {[%clk 0:01:04]}  Nxh4 {[%clk 0:01:15]} 16. Qe5 {[%clk 0:00:45]}  f6 {[%clk 0:01:14]} 17. Ne6+ {[%clk 0:00:43]}  Bxe6 {[%clk 0:01:12]} 18. Qxe6 {[%clk 0:00:43]}  Qd6 {[%clk 0:01:10]} 19. Qh3 {[%clk 0:00:35]}  Qf4 {[%clk 0:00:18]} 20. g3 {[%clk 0:00:25]}  Nf3+ {[%clk 0:00:04]} 21. Kg2 {[%clk 0:00:25]}  Ng5 {[%clk 0:00:05]} 22. Qh6+ {[%clk 0:00:22]}  Kf7 {[%clk 0:00:00]} 23. gxf4 {[%clk 0:00:23]} 1-0


[Site "https://www.chess.com"]

[Event "Titled Tuesday Blitz November 07 Early 2023"]
[White "Baches Garcia, Guillermo"]
[Black "LeoWin2012"]
[WhiteFideId "2209764"]
[WhiteElo "2482"]
[BlackElo "2279"]
[Result "1-0"]
[Round "6"]
[TimeControl "180+1"]
[Date "2023.11.07"]
[WhiteClock "0:01:57"]
[BlackClock "0:02:27"]
[Board "169"]

1. d4 {[%clk 0:03:00]}  d5 {[%clk 0:02:57]} 2. Nf3 {[%clk 0:03:01]}  Nf6 {[%clk 0:02:56]} 3. Bg5 {[%clk 0:03:01]}  Ne4 {[%clk 0:02:54]} 4. Bf4 {[%clk 0:03:01]}  e6 {[%clk 0:02:49]} 5. Nbd2 {[%clk 0:03:00]}  f5 {[%clk 0:02:45]} 6. e3 {[%clk 0:02:58]}  c5 {[%clk 0:02:40]} 7. Nxe4 {[%clk 0:02:51]}  dxe4 {[%clk 0:02:37]} 8. Ne5 {[%clk 0:02:51]}  cxd4 {[%clk 0:02:36]} 9. Qh5+ {[%clk 0:02:45]}  Ke7 {[%clk 0:02:33]} 10. Bg5+ {[%clk 0:02:16]}  Kd6 {[%clk 0:02:32]} 11. Nf7+ {[%clk 0:02:15]}  Kc5 {[%clk 0:02:31]} 12. Bxd8 {[%clk 0:02:11]}  dxe3 {[%clk 0:02:30]} 13. Nxh8 {[%clk 0:02:08]}  e2 {[%clk 0:02:31]} 14. Qxe2 {[%clk 0:02:05]}  Nc6 {[%clk 0:02:29]} 15. O-O-O {[%clk 0:02:03]}  Bd6 {[%clk 0:02:27]} 16. Qb5# {[%clk 0:01:57]} 1-0


[Site "https://www.chess.com"]

[Event "Titled Tuesday Blitz November 07 Early 2023"]
[White "Mirza, Diana"]
[Black "Matthes, Aaron"]
[WhiteFideId "2503999"]
[BlackFideId "16227310"]
[WhiteElo "1980"]
[BlackElo "2343"]
[Result "1-0"]
[Round "6"]
[TimeControl "180+1"]
[Date "2023.11.07"]
[WhiteClock "0:00:41"]
[BlackClock "0:00:14"]
[Board "175"]

1. e4 {[%clk 0:03:00]}  c6 {[%clk 0:02:49]} 2. d4 {[%clk 0:03:00]}  d5 {[%clk 0:02:49]} 3. exd5 {[%clk 0:03:01]}  cxd5 {[%clk 0:02:49]} 4. Bd3 {[%clk 0:03:02]}  Nc6 {[%clk 0:02:49]} 5. c3 {[%clk 0:03:03]}  Nf6 {[%clk 0:02:48]} 6. Bf4 {[%clk 0:03:03]}  Bg4 {[%clk 0:02:48]} 7. Qb3 {[%clk 0:03:02]}  Qd7 {[%clk 0:02:46]} 8. Nd2 {[%clk 0:03:02]}  e6 {[%clk 0:02:41]} 9. Ngf3 {[%clk 0:03:00]}  a6 {[%clk 0:02:38]} 10. O-O {[%clk 0:02:59]}  Be7 {[%clk 0:02:38]} 11. Ne5 {[%clk 0:02:57]}  Nxe5 {[%clk 0:02:35]} 12. Bxe5 {[%clk 0:02:48]}  O-O {[%clk 0:02:34]} 13. f4 {[%clk 0:02:47]}  b5 {[%clk 0:02:28]} 14. a4 {[%clk 0:02:43]}  bxa4 {[%clk 0:02:13]} 15. Qxa4 {[%clk 0:02:41]}  Qb7 {[%clk 0:02:11]} 16. b3 {[%clk 0:02:21]}  a5 {[%clk 0:02:10]} 17. c4 {[%clk 0:02:16]}  Bb4 {[%clk 0:02:04]} 18. Nf3 {[%clk 0:02:09]}  dxc4 {[%clk 0:02:01]} 19. bxc4 {[%clk 0:02:06]}  Ne4 {[%clk 0:01:57]} 20. Qc2 {[%clk 0:01:44]}  f5 {[%clk 0:01:37]} 21. h3 {[%clk 0:01:29]}  Bxf3 {[%clk 0:01:34]} 22. Rxf3 {[%clk 0:01:29]}  Rfc8 {[%clk 0:01:28]} 23. Bxe4 {[%clk 0:01:23]}  Qxe4 {[%clk 0:01:25]} 24. Qa4 {[%clk 0:01:04]}  Rxc4 {[%clk 0:01:17]} 25. Qd7 {[%clk 0:01:04]}  Bf8 {[%clk 0:00:54]} 26. Qxe6+ {[%clk 0:01:02]}  Kh8 {[%clk 0:00:55]} 27. Qxc4 {[%clk 0:01:02]}  Rd8 {[%clk 0:00:38]} 28. Rg3 {[%clk 0:00:44]}  Re8 {[%clk 0:00:14]} 29. Qf7 {[%clk 0:00:41]} 1-0


[Site "https://www.chess.com"]

[Event "Titled Tuesday Blitz November 07 Early 2023"]
[White "Estrada Nieto, Julian"]
[Black "Minina, Veronika"]
[WhiteFideId "5101018"]
[BlackFideId "4174780"]
[WhiteElo "2472"]
[BlackElo "2314"]
[Result "1-0"]
[Round "6"]
[TimeControl "180+1"]
[Date "2023.11.07"]
[WhiteClock "0:00:47"]
[BlackClock "0:00:00"]
[Board "177"]

1. e4 {[%clk 0:03:00]}  c5 {[%clk 0:02:37]} 2. Nf3 {[%clk 0:03:00]}  Nc6 {[%clk 0:02:37]} 3. Bb5 {[%clk 0:03:00]}  e6 {[%clk 0:02:36]} 4. O-O {[%clk 0:02:59]}  Nge7 {[%clk 0:02:31]} 5. Re1 {[%clk 0:02:59]}  Ng6 {[%clk 0:02:23]} 6. c3 {[%clk 0:02:59]}  Be7 {[%clk 0:02:22]} 7. d4 {[%clk 0:02:57]}  cxd4 {[%clk 0:02:21]} 8. cxd4 {[%clk 0:02:57]}  d5 {[%clk 0:02:10]} 9. e5 {[%clk 0:02:57]}  O-O {[%clk 0:02:09]} 10. Nc3 {[%clk 0:02:55]}  a6 {[%clk 0:02:08]} 11. Bd3 {[%clk 0:02:53]}  b5 {[%clk 0:01:59]} 12. g3 {[%clk 0:02:52]}  b4 {[%clk 0:01:54]} 13. Ne2 {[%clk 0:02:51]}  a5 {[%clk 0:01:53]} 14. h4 {[%clk 0:02:38]}  Re8 {[%clk 0:01:43]} 15. Bg5 {[%clk 0:02:27]}  Ba6 {[%clk 0:01:28]} 16. Rc1 {[%clk 0:02:25]}  Bxd3 {[%clk 0:00:49]} 17. Qxd3 {[%clk 0:02:25]}  Qd7 {[%clk 0:00:46]} 18. h5 {[%clk 0:02:22]}  Nf8 {[%clk 0:00:43]} 19. h6 {[%clk 0:02:11]}  g6 {[%clk 0:00:41]} 20. Qe3 {[%clk 0:01:59]}  Bxg5 {[%clk 0:00:34]} 21. Qxg5 {[%clk 0:01:56]}  Ne7 {[%clk 0:00:23]} 22. g4 {[%clk 0:01:41]}  Qd8 {[%clk 0:00:12]} 23. Qf6 {[%clk 0:01:35]}  Nf5 {[%clk 0:00:12]} 24. gxf5 {[%clk 0:01:29]}  Qxf6 {[%clk 0:00:09]} 25. exf6 {[%clk 0:01:29]}  exf5 {[%clk 0:00:08]} 26. Nf4 {[%clk 0:01:25]}  Rad8 {[%clk 0:00:06]} 27. Rxe8 {[%clk 0:01:23]}  Rxe8 {[%clk 0:00:05]} 28. Nxd5 {[%clk 0:01:23]}  Ne6 {[%clk 0:00:06]} 29. Ne7+ {[%clk 0:00:57]}  Kf8 {[%clk 0:00:04]} 30. d5 {[%clk 0:00:57]}  Nf4 {[%clk 0:00:04]} 31. Rc5 {[%clk 0:00:51]}  Rd8 {[%clk 0:00:02]} 32. Ne5 {[%clk 0:00:48]}  Nd3 {[%clk 0:00:00]} 33. Nxd3 {[%clk 0:00:47]} 1-0


[Site "https://www.chess.com"]

[Event "Titled Tuesday Blitz November 07 Early 2023"]
[White "Boraso, Alessio"]
[Black "Barbot, Pierre"]
[WhiteFideId "848077"]
[BlackFideId "663727"]
[WhiteElo "2434"]
[BlackElo "2302"]
[Result "1-0"]
[Round "6"]
[TimeControl "180+1"]
[Date "2023.11.07"]
[WhiteClock "0:00:03"]
[BlackClock "0:00:02"]
[Board "180"]

1. g3 {[%clk 0:03:00]}  g6 {[%clk 0:02:56]} 2. Bg2 {[%clk 0:03:01]}  Nf6 {[%clk 0:02:56]} 3. e4 {[%clk 0:03:01]}  d6 {[%clk 0:02:52]} 4. d4 {[%clk 0:03:01]}  Bg7 {[%clk 0:02:53]} 5. Ne2 {[%clk 0:03:00]}  O-O {[%clk 0:02:53]} 6. O-O {[%clk 0:03:00]}  c5 {[%clk 0:02:53]} 7. Nbc3 {[%clk 0:02:59]}  cxd4 {[%clk 0:02:52]} 8. Nxd4 {[%clk 0:03:00]}  Nc6 {[%clk 0:02:52]} 9. h3 {[%clk 0:02:59]}  Nxd4 {[%clk 0:02:37]} 10. Qxd4 {[%clk 0:03:00]}  Nd7 {[%clk 0:02:38]} 11. Qe3 {[%clk 0:02:50]}  Nc5 {[%clk 0:02:35]} 12. a4 {[%clk 0:02:49]}  Be6 {[%clk 0:02:28]} 13. a5 {[%clk 0:02:43]}  Rc8 {[%clk 0:02:27]} 14. Kh2 {[%clk 0:02:39]}  b6 {[%clk 0:02:05]} 15. Nb5 {[%clk 0:02:18]}  Bc4 {[%clk 0:01:59]} 16. Nxa7 {[%clk 0:02:16]}  Bxf1 {[%clk 0:01:59]} 17. Bxf1 {[%clk 0:02:04]}  Ra8 {[%clk 0:01:54]} 18. Nc6 {[%clk 0:01:40]}  Qc7 {[%clk 0:01:42]} 19. Bb5 {[%clk 0:01:40]}  bxa5 {[%clk 0:01:41]} 20. Bd2 {[%clk 0:01:30]}  a4 {[%clk 0:01:22]} 21. f3 {[%clk 0:01:17]}  Bxb2 {[%clk 0:01:12]} 22. Ra2 {[%clk 0:01:08]}  Bg7 {[%clk 0:01:11]} 23. h4 {[%clk 0:01:07]}  Bf6 {[%clk 0:00:59]} 24. h5 {[%clk 0:01:04]}  Qb6 {[%clk 0:00:57]} 25. c4 {[%clk 0:01:02]}  Nd7 {[%clk 0:00:51]} 26. Qe2 {[%clk 0:00:44]}  Ne5 {[%clk 0:00:46]} 27. Be3 {[%clk 0:00:37]}  Qb7 {[%clk 0:00:41]} 28. Nb4 {[%clk 0:00:34]}  Rfc8 {[%clk 0:00:26]} 29. Nd5 {[%clk 0:00:30]}  Ra5 {[%clk 0:00:24]} 30. f4 {[%clk 0:00:29]}  Nc6 {[%clk 0:00:22]} 31. Qg4 {[%clk 0:00:21]}  Re8 {[%clk 0:00:17]} 32. Nb4 {[%clk 0:00:11]}  Nxb4 {[%clk 0:00:12]} 33. Bxe8 {[%clk 0:00:09]}  Nxa2 {[%clk 0:00:12]} 34. hxg6 {[%clk 0:00:07]}  hxg6 {[%clk 0:00:12]} 35. f5 {[%clk 0:00:08]}  Qb2+ {[%clk 0:00:09]} 36. Kh3 {[%clk 0:00:08]}  Bg7 {[%clk 0:00:07]} 37. fxg6 {[%clk 0:00:04]}  fxg6 {[%clk 0:00:06]} 38. Bxg6 {[%clk 0:00:03]}  Qe5 {[%clk 0:00:06]} 39. Bd4 {[%clk 0:00:01]}  Qxd4 {[%clk 0:00:05]} 40. Qe6+ {[%clk 0:00:02]}  Kh8 {[%clk 0:00:05]} 41. Qc8+ {[%clk 0:00:03]}  Bf8 {[%clk 0:00:02]} 42. Qxf8# {[%clk 0:00:03]} 1-0


[Site "https://www.chess.com"]

[Event "Titled Tuesday Blitz November 07 Early 2023"]
[White "Sarkar, Justin"]
[Black "Filip, Andrei"]
[WhiteFideId "2010011"]
[BlackFideId "1249452"]
[WhiteElo "2224"]
[BlackElo "2402"]
[Result "0-1"]
[Round "6"]
[TimeControl "180+1"]
[Date "2023.11.07"]
[WhiteClock "0:00:00"]
[BlackClock "0:00:16"]
[Board "185"]

1. e4 {[%clk 0:02:42]}  e5 {[%clk 0:02:53]} 2. Nf3 {[%clk 0:02:41]}  Nc6 {[%clk 0:02:52]} 3. Bc4 {[%clk 0:02:38]}  Bc5 {[%clk 0:02:45]} 4. c3 {[%clk 0:02:37]}  Nf6 {[%clk 0:02:40]} 5. d4 {[%clk 0:02:37]}  exd4 {[%clk 0:02:40]} 6. e5 {[%clk 0:02:36]}  d5 {[%clk 0:02:40]} 7. Be2 {[%clk 0:02:36]}  Ne4 {[%clk 0:02:38]} 8. cxd4 {[%clk 0:02:35]}  Bb4+ {[%clk 0:02:39]} 9. Nbd2 {[%clk 0:02:33]}  Bf5 {[%clk 0:02:35]} 10. O-O {[%clk 0:02:30]}  O-O {[%clk 0:02:33]} 11. Nb3 {[%clk 0:01:44]}  f6 {[%clk 0:02:18]} 12. Be3 {[%clk 0:01:32]}  Bg4 {[%clk 0:02:12]} 13. a3 {[%clk 0:01:13]}  Be7 {[%clk 0:02:09]} 14. Rc1 {[%clk 0:01:01]}  fxe5 {[%clk 0:01:45]} 15. Nxe5 {[%clk 0:00:54]}  Nxe5 {[%clk 0:01:37]} 16. dxe5 {[%clk 0:00:50]}  Bxe2 {[%clk 0:01:33]} 17. Qxe2 {[%clk 0:00:50]}  c6 {[%clk 0:01:33]} 18. f3 {[%clk 0:00:41]}  Ng5 {[%clk 0:01:31]} 19. Nc5 {[%clk 0:00:36]}  Qc8 {[%clk 0:01:24]} 20. f4 {[%clk 0:00:24]}  Ne6 {[%clk 0:01:23]} 21. Nb3 {[%clk 0:00:10]}  g6 {[%clk 0:01:19]} 22. g4 {[%clk 0:00:08]}  Ng7 {[%clk 0:01:00]} 23. Bc5 {[%clk 0:00:07]}  Bxc5+ {[%clk 0:00:57]} 24. Nxc5 {[%clk 0:00:07]}  b6 {[%clk 0:00:55]} 25. Nd3 {[%clk 0:00:06]}  c5 {[%clk 0:00:55]} 26. Qf3 {[%clk 0:00:04]}  d4 {[%clk 0:00:51]} 27. Qe4 {[%clk 0:00:04]}  Qxg4+ {[%clk 0:00:51]} 28. Kh1 {[%clk 0:00:04]}  Qf5 {[%clk 0:00:48]} 29. Qd5+ {[%clk 0:00:02]}  Kh8 {[%clk 0:00:48]} 30. Ne1 {[%clk 0:00:01]}  Rad8 {[%clk 0:00:45]} 31. Qf3 {[%clk 0:00:01]}  Ne6 {[%clk 0:00:42]} 32. Ng2 {[%clk 0:00:01]}  Ng7 {[%clk 0:00:17]} 33. Rcd1 {[%clk 0:00:01]}  Qe6 {[%clk 0:00:16]} 34. Qg4 {[%clk 0:00:00]}  Qxg4 {[%clk 0:00:16]} 0-1


[Site "https://www.chess.com"]

[Event "Titled Tuesday Blitz November 07 Early 2023"]
[White "knightinshiningarmour16"]
[Black "La Villa Rivas, Marlon Javier"]
[BlackFideId "3519546"]
[WhiteElo "2164"]
[BlackElo "2377"]
[Result "0-1"]
[Round "6"]
[TimeControl "180+1"]
[Date "2023.11.07"]
[WhiteClock "0:00:22"]
[BlackClock "0:01:52"]
[Board "187"]

1. d4 {[%clk 0:02:59]}  Nf6 {[%clk 0:02:59]} 2. Nf3 {[%clk 0:02:58]}  e6 {[%clk 0:02:58]} 3. c4 {[%clk 0:02:58]}  b6 {[%clk 0:02:56]} 4. Nc3 {[%clk 0:02:58]}  Bb4 {[%clk 0:02:55]} 5. Qc2 {[%clk 0:02:58]}  Bb7 {[%clk 0:02:54]} 6. Bg5 {[%clk 0:02:57]}  h6 {[%clk 0:02:53]} 7. Bh4 {[%clk 0:02:53]}  g5 {[%clk 0:02:53]} 8. Bg3 {[%clk 0:02:53]}  Ne4 {[%clk 0:02:54]} 9. a3 {[%clk 0:02:42]}  Bxc3+ {[%clk 0:02:53]} 10. bxc3 {[%clk 0:02:40]}  Nxg3 {[%clk 0:02:53]} 11. hxg3 {[%clk 0:02:39]}  d6 {[%clk 0:02:54]} 12. e4 {[%clk 0:02:35]}  Nd7 {[%clk 0:02:53]} 13. Bd3 {[%clk 0:02:34]}  Qf6 {[%clk 0:02:50]} 14. a4 {[%clk 0:02:30]}  a5 {[%clk 0:02:47]} 15. Rb1 {[%clk 0:02:27]}  O-O-O {[%clk 0:02:44]} 16. Nd2 {[%clk 0:02:09]}  e5 {[%clk 0:02:38]} 17. Qb2 {[%clk 0:01:50]}  Rhe8 {[%clk 0:02:31]} 18. O-O {[%clk 0:01:38]}  h5 {[%clk 0:02:28]} 19. c5 {[%clk 0:01:37]}  dxc5 {[%clk 0:02:27]} 20. Bb5 {[%clk 0:01:34]}  exd4 {[%clk 0:02:25]} 21. cxd4 {[%clk 0:01:32]}  Qxd4 {[%clk 0:02:25]} 22. Nc4 {[%clk 0:01:31]}  Qxb2 {[%clk 0:02:24]} 23. Rxb2 {[%clk 0:01:31]}  Rxe4 {[%clk 0:02:23]} 24. f3 {[%clk 0:01:29]}  Rd4 {[%clk 0:02:21]} 25. Bxd7+ {[%clk 0:01:19]}  R8xd7 {[%clk 0:02:20]} 26. Ne5 {[%clk 0:01:19]}  Re7 {[%clk 0:02:18]} 27. f4 {[%clk 0:01:17]}  f6 {[%clk 0:02:16]} 28. Ng6 {[%clk 0:01:11]}  Rg7 {[%clk 0:02:14]} 29. f5 {[%clk 0:01:01]}  Rgd7 {[%clk 0:02:13]} 30. Re2 {[%clk 0:01:00]}  Ba6 {[%clk 0:02:05]} 31. Re8+ {[%clk 0:00:58]}  Kb7 {[%clk 0:02:06]} 32. Rfe1 {[%clk 0:00:58]}  Rd1 {[%clk 0:02:06]} 33. Rxd1 {[%clk 0:00:53]}  Rxd1+ {[%clk 0:02:06]} 34. Kh2 {[%clk 0:00:54]}  Rd2 {[%clk 0:02:05]} 35. Re6 {[%clk 0:00:42]}  Rd6 {[%clk 0:02:02]} 36. Kg1 {[%clk 0:00:38]}  c4 {[%clk 0:02:01]} 37. Re7 {[%clk 0:00:34]}  c3 {[%clk 0:02:00]} 38. Re3 {[%clk 0:00:32]}  c2 {[%clk 0:02:00]} 39. Rc3 {[%clk 0:00:31]}  Rd1+ {[%clk 0:02:00]} 40. Kh2 {[%clk 0:00:32]}  c1=Q {[%clk 0:02:01]} 41. Rxc1 {[%clk 0:00:31]}  Rxc1 {[%clk 0:02:01]} 42. Ne7 {[%clk 0:00:32]}  Rc2 {[%clk 0:01:59]} 43. Ng8 {[%clk 0:00:32]}  Bf1 {[%clk 0:01:59]} 44. Nxf6 {[%clk 0:00:33]}  Bxg2 {[%clk 0:01:59]} 45. Kg1 {[%clk 0:00:31]}  Bf3 {[%clk 0:01:57]} 46. Nh7 {[%clk 0:00:27]}  g4 {[%clk 0:01:52]} 47. f6 {[%clk 0:00:27]}  Bd5 {[%clk 0:01:52]} 48. Ng5 {[%clk 0:00:27]}  Rg2+ {[%clk 0:01:52]} 49. Kf1 {[%clk 0:00:26]}  Rxg3 {[%clk 0:01:52]} 50. f7 {[%clk 0:00:27]}  Bxf7 {[%clk 0:01:51]} 51. Nxf7 {[%clk 0:00:22]}  Rf3+ {[%clk 0:01:52]} 0-1


[Site "https://www.chess.com"]

[Event "Titled Tuesday Blitz November 07 Early 2023"]
[White "ChessDojo"]
[Black "Spichkin, Alexander"]
[BlackFideId "4144074"]
[WhiteElo "2132"]
[BlackElo "2355"]
[Result "0-1"]
[Round "6"]
[TimeControl "180+1"]
[Date "2023.11.07"]
[WhiteClock "0:02:11"]
[BlackClock "0:00:59"]
[Board "190"]

1. d4 {[%clk 0:03:00]}  e6 {[%clk 0:01:44]} 2. c4 {[%clk 0:03:00]}  f5 {[%clk 0:01:43]} 3. Nc3 {[%clk 0:02:57]}  Nf6 {[%clk 0:01:43]} 4. f3 {[%clk 0:02:55]}  Bb4 {[%clk 0:01:42]} 5. e3 {[%clk 0:02:54]}  Nh5 {[%clk 0:01:40]} 6. Ne2 {[%clk 0:02:51]}  Qh4+ {[%clk 0:01:39]} 7. g3 {[%clk 0:02:49]}  Qf6 {[%clk 0:01:30]} 8. Bg2 {[%clk 0:02:46]}  O-O {[%clk 0:01:30]} 9. O-O {[%clk 0:02:46]}  Qf7 {[%clk 0:01:25]} 10. e4 {[%clk 0:02:45]}  c5 {[%clk 0:01:19]} 11. d5 {[%clk 0:02:44]}  e5 {[%clk 0:01:08]} 12. a3 {[%clk 0:02:42]}  Bxc3 {[%clk 0:01:08]} 13. Nxc3 {[%clk 0:02:41]}  f4 {[%clk 0:01:04]} 14. gxf4 {[%clk 0:02:38]}  Nxf4 {[%clk 0:01:04]} 15. Bxf4 {[%clk 0:02:38]}  Qxf4 {[%clk 0:01:04]} 16. Qc1 {[%clk 0:02:38]}  d6 {[%clk 0:01:03]} 17. Qxf4 {[%clk 0:02:37]}  Rxf4 {[%clk 0:01:03]} 18. Ne2 {[%clk 0:02:37]}  Rf8 {[%clk 0:01:02]} 19. f4 {[%clk 0:02:37]}  Bg4 {[%clk 0:01:02]} 20. Bf3 {[%clk 0:02:33]}  Bxf3 {[%clk 0:01:02]} 21. Rxf3 {[%clk 0:02:33]}  Nd7 {[%clk 0:01:02]} 22. Raf1 {[%clk 0:02:32]}  exf4 {[%clk 0:01:01]} 23. Rxf4 {[%clk 0:02:32]}  Rxf4 {[%clk 0:01:01]} 24. Rxf4 {[%clk 0:02:30]}  Ne5 {[%clk 0:01:01]} 25. b3 {[%clk 0:02:28]}  a5 {[%clk 0:01:01]} 26. Kf2 {[%clk 0:02:26]}  a4 {[%clk 0:01:01]} 27. Ng3 {[%clk 0:02:23]}  axb3 {[%clk 0:01:01]} 28. Nf5 {[%clk 0:02:23]}  b2 {[%clk 0:00:59]} 29. Ne7+ {[%clk 0:02:11]}  Kh8 {[%clk 0:00:59]} 0-1


[Site "https://www.chess.com"]

[Event "Titled Tuesday Blitz November 07 Early 2023"]
[White "Mayaud, Raphael"]
[Black "Flis, Pawel"]
[WhiteFideId "627151"]
[BlackFideId "1112864"]
[WhiteElo "2351"]
[BlackElo "2120"]
[Result "1-0"]
[Round "6"]
[TimeControl "180+1"]
[Date "2023.11.07"]
[WhiteClock "0:00:08"]
[BlackClock "0:00:00"]
[Board "191"]

1. d4 {[%clk 0:02:30]}  c5 {[%clk 0:02:59]} 2. d5 {[%clk 0:02:30]}  Nf6 {[%clk 0:02:59]} 3. Nc3 {[%clk 0:02:30]}  e6 {[%clk 0:02:58]} 4. e4 {[%clk 0:02:30]}  d6 {[%clk 0:02:58]} 5. Bb5+ {[%clk 0:02:29]}  Bd7 {[%clk 0:02:57]} 6. dxe6 {[%clk 0:02:26]}  fxe6 {[%clk 0:02:58]} 7. e5 {[%clk 0:02:24]}  dxe5 {[%clk 0:02:56]} 8. Bxd7+ {[%clk 0:02:23]}  Qxd7 {[%clk 0:02:43]} 9. Bg5 {[%clk 0:02:17]}  Qxd1+ {[%clk 0:02:37]} 10. Rxd1 {[%clk 0:02:16]}  Nbd7 {[%clk 0:02:36]} 11. Nb5 {[%clk 0:01:59]}  Kf7 {[%clk 0:02:33]} 12. Nf3 {[%clk 0:01:52]}  a6 {[%clk 0:02:32]} 13. Bxf6 {[%clk 0:01:39]}  axb5 {[%clk 0:02:21]} 14. Rxd7+ {[%clk 0:01:37]}  Kxf6 {[%clk 0:02:21]} 15. O-O {[%clk 0:01:26]}  Rxa2 {[%clk 0:02:20]} 16. Rb1 {[%clk 0:01:20]}  b6 {[%clk 0:01:56]} 17. Rb7 {[%clk 0:01:14]}  Ra6 {[%clk 0:01:55]} 18. Nd2 {[%clk 0:01:09]}  c4 {[%clk 0:01:40]} 19. Ne4+ {[%clk 0:00:55]}  Kg6 {[%clk 0:01:39]} 20. Rb8 {[%clk 0:00:48]}  h6 {[%clk 0:01:33]} 21. Kf1 {[%clk 0:00:47]}  Kh7 {[%clk 0:01:27]} 22. Ke2 {[%clk 0:00:46]}  Bb4 {[%clk 0:01:19]} 23. Rb7 {[%clk 0:00:41]}  Kg6 {[%clk 0:01:09]} 24. c3 {[%clk 0:00:38]}  Ba5 {[%clk 0:01:01]} 25. Rd1 {[%clk 0:00:38]}  Raa8 {[%clk 0:00:48]} 26. Rdd7 {[%clk 0:00:35]}  Rhg8 {[%clk 0:00:48]} 27. Nd6 {[%clk 0:00:31]}  Rad8 {[%clk 0:00:35]} 28. Nxb5 {[%clk 0:00:31]}  Rxd7 {[%clk 0:00:35]} 29. Rxd7 {[%clk 0:00:32]}  Rc8 {[%clk 0:00:28]} 30. Nd6 {[%clk 0:00:30]}  Rc6 {[%clk 0:00:27]} 31. Nb5 {[%clk 0:00:24]}  Rc5 {[%clk 0:00:27]} 32. Nd6 {[%clk 0:00:22]}  Rd5 {[%clk 0:00:26]} 33. f3 {[%clk 0:00:15]}  b5 {[%clk 0:00:26]} 34. Ra7 {[%clk 0:00:10]}  Bb6 {[%clk 0:00:22]} 35. Rd7 {[%clk 0:00:10]}  Bc5 {[%clk 0:00:21]} 36. Rb7 {[%clk 0:00:08]}  Bxd6 {[%clk 0:00:20]} 37. Ke3 {[%clk 0:00:08]}  Bc5+ {[%clk 0:00:19]} 38. Ke4 {[%clk 0:00:09]}  Bg1 {[%clk 0:00:18]} 39. h4 {[%clk 0:00:09]}  h5 {[%clk 0:00:17]} 40. g4 {[%clk 0:00:09]}  hxg4 {[%clk 0:00:16]} 41. fxg4 {[%clk 0:00:10]}  Bh2 {[%clk 0:00:15]} 42. h5+ {[%clk 0:00:09]}  Kg5 {[%clk 0:00:15]} 43. Rxg7+ {[%clk 0:00:07]}  Kh4 {[%clk 0:00:16]} 44. h6 {[%clk 0:00:07]}  Rd8 {[%clk 0:00:13]} 45. h7 {[%clk 0:00:07]}  Rh8 {[%clk 0:00:13]} 46. g5 {[%clk 0:00:06]}  Bf4 {[%clk 0:00:12]} 47. g6 {[%clk 0:00:06]}  Kh5 {[%clk 0:00:12]} 48. Rg8 {[%clk 0:00:07]}  Kh6 {[%clk 0:00:05]} 49. Rxh8 {[%clk 0:00:07]}  Kxg6 {[%clk 0:00:05]} 50. Rb8 {[%clk 0:00:05]}  Kxh7 {[%clk 0:00:05]} 51. Rxb5 {[%clk 0:00:05]}  Kg6 {[%clk 0:00:06]} 52. Rc5 {[%clk 0:00:05]}  Kf6 {[%clk 0:00:05]} 53. Rxc4 {[%clk 0:00:06]}  Ke7 {[%clk 0:00:06]} 54. b4 {[%clk 0:00:06]}  Kd6 {[%clk 0:00:06]} 55. b5 {[%clk 0:00:06]}  Bg3 {[%clk 0:00:03]} 56. Rc6+ {[%clk 0:00:07]}  Kd7 {[%clk 0:00:01]} 57. c4 {[%clk 0:00:08]}  Bf2 {[%clk 0:00:00]} 58. Ra6 {[%clk 0:00:08]} 1-0


[Site "https://www.chess.com"]